bitfinex-derivatives/quotes_SOLF0:USTF0_20250820
["timestamp","ask_amount","ask_price","bid_price","bid_amount"]
[1755730791636,2.8996626,187.43,187.35,3.03]
[1755730796146,2.8996626,187.43,187.36,2.8]
[1755730796344,4.38835334,187.43,187.36,4.28869074]
[1755730796545,4.38835334,187.43,187.37,2.8]
[1755730797343,2.97,187.4,187.35,1.48869074]
[1755730797546,2.97,187.4,187.38,2.8]
[1755730798145,2.97,187.4,187.36,2.8]
[1755730798342,2.97,187.39,187.35,1.48869074]
[1755730798546,1.48869074,187.41,187.37,2.8]
[1755730798743,2.97,187.4,187.37,2.8]
[1755730799145,1.52960712,187.41,187.35,1.48869074]
[1755730799453,4.49960712,187.41,187.38,2.8]
[1755730799846,2.97,187.4,187.34,6.82549074]
[1755730800047,2.97,187.4,187.36,2.8]
[1755730800256,1.52960712,187.41,187.35,2.8]
[1755730800257,2.97,187.38,187.35,2.8]
[1755730800553,2.97,187.37,187.33,2.8]
[1755730800750,2.97,187.38,187.34,2.8]
[1755730800952,2.97,187.36,187.31,4.43407761]
[1755730801251,2.97,187.36,187.33,2.8]
[1755730801650,2.97,187.36,187.34,2.8]
[1755730802456,2.97,187.37,187.34,2.8]
[1755730802756,2.97,187.37,187.29,2.8]
[1755730805250,2.32740226,187.35,187.29,2.8]
[1755730805555,2.97,187.33,187.26,7.23407761]
[1755730805755,2.97,187.33,187.27,4.43407761]
[1755730805955,2.97,187.33,187.29,2.8]
[1755730806257,0.03516189,187.31,187.3,2.8]
[1755730806454,0.03516189,187.31,187.28,4.43407761]
[1755730806654,3.00516189,187.31,187.28,2.8]
[1755730806962,0.03516189,187.31,187.27,4.43407761]
[1755730807156,0.03516189,187.31,187.3,2.8]
[1755730816952,3.00516189,187.31,187.27,4.43407761]
[1755730817153,3.00516189,187.31,187.28,2.8]
[1755730817954,3.00516189,187.31,187.21,4.47197615]
[1755730817955,2.32740226,187.29,187.21,4.47197615]
[1755730818265,2.32740226,187.25,187.17,2.8]
[1755730818960,0.04058394,187.23,187.17,2.8]
[1755730820158,0.04058394,187.23,187.22,2.8]
[1755730820757,0.04058394,187.23,187.22,8.1403]
[1755730822366,0.04058394,187.23,187.22,10.46770226]
[1755730823565,133.93155482,187.36,187.25,2.8]
[1755730824468,133.93155482,187.36,187.26,5.3391]
[1755730824764,133.93155482,187.36,187.29,0.037016]
[1755730825466,131.60415256,187.36,187.29,0.037016]
[1755730825666,131.44,187.4,187.31,2.32740226]
[1755730825860,2.32740226,187.5,187.38,2.86]
[1755730826065,2.32740226,187.5,187.38,5.18740226]
[1755730826363,2.32740226,187.55,187.38,5.18740226]
[1755730826364,2.32740226,187.47,187.38,2.86]
[1755730826665,2.32740226,187.47,187.42,0.04068778]
[1755730830270,2.32740226,187.44,187.42,0.04068778]
[1755730830965,0.54,187.44,187.42,0.04068778]
[1755730831162,2.86740226,187.44,187.42,0.04068778]
[1755730831964,133.74740226,187.45,187.42,0.04068778]
[1755730838069,2.32740226,187.44,187.26,5.96728637]
[1755730838271,2.32740226,187.33,187.28,2.86]
[1755730838471,2.32740226,187.3,187.21,2.86]
[1755730838672,2.32740226,187.33,187.21,2.86]
[1755730839071,2.32740226,187.33,187.23,5.3398]
[1755730839375,0.03805405,187.29,187.24,2.86]
[1755730839576,0.03805405,187.29,187.26,2.86]
[1755730839774,0.03805405,187.29,187.27,2.86]
[1755730840176,0.03805405,187.29,187.24,2.86]
[1755730840376,0.03805405,187.29,186.86,43.86664962]
[1755730840377,2.32740226,187.27,187.15,2.86]
[1755730840772,2.32740226,187.27,187.15,3.78972309]
[1755730841075,2.32740226,187.27,187.16,2.86]
[1755730841275,0.03368811,187.23,187.18,2.86]
[1755730841471,0.03368811,187.23,187.17,5.3417]
[1755730841673,0.03368811,187.23,187.2,2.86]
[1755730844286,0.03368811,187.23,187.16,2.86]
[1755730846292,0.03368811,187.23,187.12,2.86]
[1755730846589,0.03368811,187.23,187.12,3.78978519]
[1755730846887,2.32740226,187.24,187.12,3.78978519]
[1755730847089,0.03464264,187.19,187.12,2.86]
[1755730848991,0.03464264,187.19,187.14,2.86]
[1755730849186,0.03464264,187.19,187.12,2.86]
[1755730850386,0.03464264,187.19,187.14,5.3424]
[1755730850690,0.03464264,187.19,187.16,2.86]
[1755730850987,0.03464264,187.19,187.18,2.86]
[1755730863495,131.52,187.26,187.17,2.95]
[1755730863695,138.22435838,187.28,187.2,2.95]
[1755730864200,138.22435838,187.28,187.22,2.95]
[1755730864889,0.04,187.27,187.23,0.03916287]
[1755730865088,138.22435838,187.28,187.23,0.03916287]
[1755730865089,0.04,187.26,187.23,0.03916287]
[1755730865598,138.22435838,187.28,187.23,2.98916287]
[1755730865798,138.22435838,187.28,187.25,2.95]
[1755730866490,138.22435838,187.28,187.23,0.03916287]
[1755730866491,0.04,187.26,187.23,0.03916287]
[1755730868203,2.32740226,187.27,187.23,0.03916287]
[1755730868402,0.04,187.24,187.23,0.03916287]
[1755730876807,0.04,187.26,187.23,0.03916287]
[1755730876999,0.04,187.25,187.23,0.03916287]
[1755730877696,2.32740226,187.27,187.23,0.03916287]
[1755730877697,0.04,187.24,187.23,0.03916287]
[1755730879904,138.22435838,187.28,187.23,0.03916287]
[1755730879905,140.55176064,187.28,187.23,0.03916287]
[1755730880093,0.04,187.27,187.23,0.03916287]
[1755730880295,0.04,187.25,187.23,0.03916287]
[1755730884702,140.55176064,187.28,187.23,0.03916287]
[1755730884896,0.04,187.27,187.23,0.03916287]
[1755730885097,140.55176064,187.28,187.23,0.03916287]
[1755730885301,0.04,187.24,187.23,0.03916287]
[1755730886702,140.55176064,187.28,187.24,2.96]
[1755730886904,140.55176064,187.28,187.25,2.96]
[1755730887409,138.22435838,187.28,187.25,2.96]
[1755730887905,138.27435838,187.28,187.25,2.96]
[1755730889503,0.05,187.27,187.23,2.99916287]
[1755730890304,0.05,187.25,187.23,0.03916287]
[1755730890504,0.05,187.24,187.23,0.03916287]
[1755730891711,0.05,187.27,187.23,2.99916287]
[1755730891918,138.22435838,187.28,187.25,2.96]
[1755730893606,138.27435838,187.28,187.25,2.96]
[1755730893911,0.05,187.27,187.23,0.03916287]
[1755730894107,0.05,187.26,187.23,0.03916287]
[1755730895107,0.05,187.26,187.23,2.99916287]
[1755730898403,131.54,187.25,187.23,2.99916287]
[1755730899509,131.59,187.25,187.23,0.03916287]
[1755730904019,0.05,187.24,187.23,0.03916287]
[1755730904912,2.37740226,187.24,187.23,0.03916287]
[1755730906821,2.32740226,187.24,187.23,0.03916287]
[1755730908718,2.37740226,187.24,187.23,0.03916287]
[1755730909314,2.37740226,187.24,187.16,2.96]
[1755730910130,2.37740226,187.21,187.17,2.96]
[1755730910425,131.54,187.2,187.17,2.96]
[1755730910815,131.57667098,187.2,187.17,2.96]
[1755730911019,131.62667098,187.2,187.17,2.96]
[1755730911219,0.05,187.19,187.15,4.48767448]
[1755730911422,0.05,187.19,187.16,2.96]
[1755730914221,0.05,187.19,187.15,4.48767448]
[1755730914426,0.05,187.19,187.15,7.44767448]
[1755730914828,0.05,187.19,187.16,2.96]
[1755730918428,131.62667098,187.2,187.15,4.48767448]
[1755730918729,131.62667098,187.2,187.17,2.9]
[1755730921540,0.05,187.19,187.15,4.48767448]
[1755730921727,0.05,187.19,187.16,2.9]
[1755730922222,131.57667098,187.2,187.18,2.9]
[1755730922426,0.03667098,187.2,187.19,2.9]
[1755730926138,0.03667098,187.2,187.17,2.9]
[1755730926837,0.08667098,187.2,187.17,2.9]
[1755730927026,0.03667098,187.2,187.19,2.9]
[1755730927833,2.37740226,187.26,187.19,2.9]
[1755730928035,133.89740226,187.26,187.19,2.9]
[1755730928435,358.98,187.31,187.19,2.9]
[1755730928436,361.39740226,187.31,187.19,2.9]
[1755730928739,2.32740226,187.28,187.19,2.9]
[1755730929039,0.09,187.27,187.19,2.9]
[1755730929229,2.32740226,187.28,187.22,0.03977888]
[1755730929432,2.32740226,187.25,187.22,0.03977888]
[1755730929641,131.61,187.24,187.22,0.03977888]
[1755730929832,0.09,187.23,187.22,0.03977888]
[1755730931937,131.61,187.23,187.22,0.03977888]
[1755730933744,0.09,187.23,187.22,0.03977888]
[1755730933945,131.61,187.23,187.22,0.03977888]
[1755730934840,2.32740226,187.25,187.22,2.93977888]
[1755730935040,2.32740226,187.25,187.23,2.9]
[1755730935341,131.52,187.26,187.23,2.9]
[1755730935542,131.52,187.26,187.24,2.9]
[1755730936839,131.52,187.26,187.22,0.03977888]
[1755730937039,131.52,187.26,187.23,2.9]
[1755730937542,2.41740226,187.25,187.22,0.03977888]
[1755730937741,2.32740226,187.25,187.22,0.03977888]
[1755730937945,0.09,187.24,187.22,0.03977888]
[1755730938451,2.32740226,187.25,187.22,0.03977888]
[1755730938452,2.32740226,187.25,187.23,2.9]
[1755730939651,2.32740226,187.25,187.24,2.9]
[1755730940143,2.32740226,187.25,187.22,0.03977888]
[1755730940343,2.32740226,187.25,187.23,2.9]
[1755730941554,0.09,187.24,187.22,0.03977888]
[1755730942250,0.09,187.24,187.22,2.93977888]
[1755730942454,2.32740226,187.25,187.22,2.93977888]
[1755730942941,2.41740226,187.25,187.22,2.93977888]
[1755730943142,2.32740226,187.25,187.22,0.03977888]
[1755730943349,2.32740226,187.25,187.22,2.93977888]
[1755730943746,2.41740226,187.25,187.22,2.93977888]
[1755730943950,131.5,187.24,187.22,2.93977888]
[1755730945751,2.32740226,187.27,187.23,2.81]
[1755730945952,131.58,187.26,187.23,2.81]
[1755730946149,0.08,187.25,187.22,2.84977888]
[1755730946848,0.08,187.23,187.22,0.03977888]
[1755730947756,2.40740226,187.23,187.22,0.03977888]
[1755730948148,2.32740226,187.23,187.22,0.03977888]
[1755730951162,0.08,187.23,187.22,0.03977888]
[1755730951355,2.40740226,187.23,187.16,2.81]
[1755730952062,2.32740226,187.2,187.17,2.81]
[1755730952258,2.32740226,187.2,187.16,2.81]
[1755730952458,2.32740226,187.2,187.17,2.81]
[1755730952659,2.32740226,187.2,187.18,2.81]
[1755730953062,2.36714311,187.2,187.19,2.81]
[1755730953868,2.36714311,187.2,187.16,2.81]
[1755730954062,2.36714311,187.2,187.15,4.48767448]
[1755730954268,2.36714311,187.2,187.18,2.81]
[1755730957064,0.08,187.19,187.15,7.29767448]
[1755730957365,2.32740226,187.17,187.15,7.29767448]
[1755730957568,2.32740226,187.17,187.15,4.48767448]
[1755730957569,2.40740226,187.17,187.15,4.48767448]
[1755730959167,2.40740226,187.17,187.15,7.29767448]
[1755730961367,2.40740226,187.17,187.15,4.48767448]
[1755730961368,2.32740226,187.17,187.15,4.48767448]
[1755730961564,2.32740226,187.17,187.16,2.81]
[1755730962367,2.32740226,187.17,187.15,4.48767448]
[1755730962972,2.41740226,187.17,187.15,7.29767448]
[1755730963173,2.32740226,187.17,187.16,2.81]
[1755730963871,2.36714311,187.2,187.16,2.81]
[1755730964171,0.03974085,187.2,187.15,4.48767448]
[1755730964368,0.03974085,187.2,187.18,2.81]
[1755730964866,0.03974085,187.2,187.19,2.81]
[1755730966273,133.80740226,187.23,187.19,2.81]
[1755730966274,131.48,187.23,187.19,2.81]
[1755730969176,2.32740226,187.27,187.19,2.81]
[1755730970373,2.45740226,187.27,187.19,2.81]
[1755730970775,0.13,187.26,187.19,2.81]
[1755730971474,2.32740226,187.27,187.19,2.81]
[1755730973277,0.13,187.26,187.19,2.81]
[1755730975081,0.13,187.26,187.19,8.1511]
[1755730975779,0.13,187.26,187.2,3.05]
[1755730980579,2.32740226,187.27,187.2,3.05]
[1755730980883,2.32740226,187.27,187.2,8.3908]
[1755730981080,2.32740226,187.27,187.21,3.05]
[1755730981879,2.32740226,187.27,187.22,0.03659864]
[1755730982086,131.56,187.28,187.24,3.05]
[1755730982482,0.12,187.26,187.22,0.03659864]
[1755730982781,0.12,187.26,187.24,3.05]
[1755730982984,2.32740226,187.27,187.25,3.05]
[1755730983379,0.12,187.26,187.22,0.03659864]
[1755730983687,2.32740226,187.24,187.22,0.03659864]
[1755730983978,0.12,187.23,187.22,0.03659864]
[1755730986886,2.32740226,187.24,187.22,0.03659864]
[1755730987084,2.44740226,187.24,187.22,0.03659864]
[1755730987782,261.46454802,187.29,187.24,3.05]
[1755730987990,261.46454802,187.29,187.22,0.03659864]
[1755730987991,261.58454802,187.29,187.26,3.05]
[1755730988882,130.16454802,187.29,187.23,3.05]
[1755730989081,261.58454802,187.29,187.23,3.05]
[1755730989485,2.32740226,187.28,187.23,3.05]
[1755730989884,0.12,187.26,187.23,3.05]
[1755730990184,0.12,187.26,187.22,0.03659864]
[1755730990483,0.12,187.24,187.22,0.03659864]
[1755730990677,0.12,187.23,187.22,0.03659864]
[1755730991588,2.44740226,187.25,187.22,0.03659864]
[1755730991886,0.12,187.24,187.22,0.03659864]
[1755730992478,2.44740226,187.25,187.22,3.08659864]
[1755730992683,2.32740226,187.25,187.22,0.03659864]
[1755730992886,2.44740226,187.28,187.22,0.03659864]
[1755730993189,131.52,187.27,187.23,3.05]
[1755730993392,131.52,187.27,187.22,0.03659864]
[1755730993588,131.52,187.27,187.24,3.05]
[1755730996096,131.4,187.27,187.25,3.05]
[1755730996496,130.04454802,187.29,187.25,3.05]
[1755730996700,131.4,187.26,187.25,3.05]
[1755730998900,131.4,187.26,187.23,3.05]
[1755730999098,131.4,187.26,187.24,3.05]
[1755730999299,131.4,187.26,187.22,0.03659864]
[1755730999500,131.4,187.26,187.24,3.05]
[1755731003406,131.4,187.26,187.22,0.03659864]
[1755731003702,0.12,187.24,187.22,0.03659864]
[1755731003903,0.12,187.23,187.22,0.03659864]
[1755731006108,2.32740226,187.24,187.22,0.03659864]
[1755731006304,2.44740226,187.24,187.22,0.03659864]
[1755731007004,0.12,187.23,187.22,0.03659864]
[1755731009509,0.12,187.23,187.18,3.05]
[1755731009711,2.32740226,187.21,187.18,3.05]
[1755731009909,0.12,187.2,187.15,7.46767448]
[1755731010102,2.32740226,187.21,187.16,2.98]
[1755731010409,2.32740226,187.21,187.15,8.95944178]
[1755731010612,2.32740226,187.21,187.19,2.98]
[1755731011009,0.03504688,187.2,187.19,2.98]
[1755731011814,131.41504688,187.2,187.19,2.98]
[1755731012917,131.41504688,187.2,187.15,4.48767448]
[1755731013125,131.41504688,187.2,187.16,2.98]
[1755731013312,131.41504688,187.2,187.18,2.98]
[1755731013909,0.03504688,187.2,187.18,2.98]
[1755731015013,0.03504688,187.2,187.19,2.98]
[1755731015619,0.12,187.19,187.16,2.98]
[1755731020419,0.03504688,187.2,187.16,2.98]
[1755731020625,0.03504688,187.2,187.18,2.98]
[1755731021128,0.03504688,187.2,187.15,4.48767448]
[1755731021317,0.03504688,187.2,187.17,2.98]
[1755731021519,0.03504688,187.2,187.15,4.48767448]
[1755731021720,0.03504688,187.2,187.19,2.98]
[1755731023624,0.03504688,187.2,187.15,4.48767448]
[1755731024329,0.03504688,187.2,187.18,2.98]
[1755731025731,0.03504688,187.2,187.19,2.98]
[1755731030331,0.03504688,187.2,187.15,4.48767448]
[1755731030625,0.03504688,187.2,187.17,2.98]
[1755731030832,0.03504688,187.2,187.18,2.98]
[1755731031725,0.12,187.19,187.15,4.48767448]
[1755731031924,0.12,187.16,187.15,4.48767448]
[1755731032933,2.44740226,187.17,187.15,4.48767448]
[1755731033126,2.44740226,187.17,187.13,2.98]
[1755731033332,2.44740226,187.17,187.14,2.98]
[1755731034239,2.48443447,187.17,187.14,2.98]
[1755731035239,0.12,187.16,187.09,2.98]
[1755731035939,2.32740226,187.14,187.09,2.98]
[1755731036137,2.32740226,187.14,187.11,3.03]
[1755731036437,2.32740226,187.14,187.12,3.03]
[1755731037244,2.32740226,187.14,187.08,6.27420882]
[1755731037433,2.32740226,187.14,187.13,3.03]
[1755731040342,0.15758484,187.15,187.05,188.10017392]
[1755731040535,2.32740226,187.14,187.06,3.03]
[1755731041042,2.32740226,187.14,187.06,8.3747]
[1755731041242,2.32740226,187.14,187.07,3.03]
[1755731041840,2.32740226,187.14,187.08,3.03]
[1755731046335,2.32740226,187.11,187.06,3.03]
[1755731046537,2.44740226,187.11,187.05,0.93022013]
[1755731046744,2.44740226,187.11,187.08,3.03]
[1755731046946,2.44740226,187.11,187.06,3.03]
[1755731047239,0.0338544,187.1,187.05,0.93022013]
[1755731047437,0.0338544,187.1,187.09,3.03]
[1755731048339,0.0338544,187.1,187.06,3.03]
[1755731048648,0.0338544,187.1,187.08,3.03]
[1755731049236,0.0338544,187.1,187.06,3.03]
[1755731049441,2.44740226,187.09,187.03,3.03]
[1755731051347,2.32740226,187.09,187.03,3.03]
[1755731051944,2.32740226,187.09,187.04,3.03]
[1755731052546,2.32740226,187.09,187.05,3.03]
[1755731052843,0.0338544,187.1,187.05,3.03]
[1755731053546,0.0338544,187.1,187.01,4.47233781]
[1755731053741,0.0338544,187.1,187.02,3.03]
[1755731054049,0.0338544,187.1,187.06,5.345]
[1755731054650,0.0338544,187.1,187.09,3.03]
[1755731056352,0.0338544,187.1,187.02,3.03]
[1755731056856,0.0338544,187.1,187.06,3.03]
[1755731057055,0.0338544,187.1,187.02,3.03]
[1755731057349,0.0338544,187.1,187.07,3.03]
[1755731057850,0.0338544,187.1,187.09,3.03]
[1755731059752,0.1538544,187.1,187.03,3.03]
[1755731059952,0.1538544,187.1,187.04,5.3453]
[1755731060158,0.1538544,187.1,187.03,3.03]
[1755731062061,0.12,187.07,187.03,3.03]
[1755731062356,0.13,187.05,187.03,3.03]
[1755731062561,0.13,187.05,187.0,5.40273202]
[1755731062757,2.45740226,187.08,187.02,3.03]
[1755731063157,0.03598755,187.04,187.03,3.03]
[1755731077364,0.03598755,187.04,187.03,8.3758]
[1755731084177,0.03598755,187.04,187.03,12.84813781]
[1755731086678,0.03598755,187.04,187.03,7.50233781]
[1755731086975,0.03598755,187.04,187.03,4.47233781]
[1755731088177,0.14598755,187.04,187.02,4.47233781]
[1755731089284,0.11,187.03,187.01,4.47233781]
[1755731089573,1.53057672,187.04,186.98,2.81]
[1755731089574,0.11,187.01,187.0,4.47233781]
[1755731091274,0.11,187.01,186.98,8.7945191]
[1755731091582,0.11,187.01,186.99,2.81]
[1755731092379,0.11,187.01,187.0,4.50110745]
[1755731094385,2.48229654,187.04,187.0,7.31110745]
[1755731094592,2.37229654,187.04,187.01,2.81]
[1755731094784,0.11,187.03,187.01,2.81]
[1755731095587,2.37229654,187.04,187.0,4.50110745]
[1755731095780,0.03598755,187.04,187.01,2.77]
[1755731096183,0.16598755,187.04,187.01,2.77]
[1755731098287,0.13,187.03,187.01,2.77]
[1755731098493,0.03598755,187.04,187.0,4.50110745]
[1755731098691,0.16598755,187.04,187.01,2.77]
[1755731099400,0.16598755,187.04,187.0,9.84770745]
[1755731099593,0.16598755,187.04,187.01,2.77]
[1755731100393,0.16598755,187.04,187.02,2.77]
[1755731100792,0.03598755,187.04,187.03,2.77]
[1755731101296,0.03598755,187.04,187.03,7.27110745]
[1755731101998,0.03598755,187.04,187.03,8.1158]
[1755731102992,0.03598755,187.04,187.03,4.49110216]
[1755731103298,0.03598755,187.04,187.02,2.77]
[1755731103601,0.16598755,187.04,187.02,7.26110216]
[1755731104098,0.16598755,187.04,187.02,4.49110216]
[1755731104400,0.03598755,187.04,187.02,7.26110216]
[1755731104597,0.16598755,187.04,187.02,7.26110216]
[1755731105093,0.16598755,187.04,187.02,4.49110216]
[1755731105804,0.16598755,187.04,187.02,7.26110216]
[1755731105999,0.03598755,187.04,187.02,4.49110216]
[1755731106193,0.03598755,187.04,187.02,7.26110216]
[1755731109397,0.13,187.03,187.02,4.49110216]
[1755731109603,0.13,187.03,187.01,4.49110216]
[1755731110601,0.13,187.03,187.0,4.49110216]
[1755731110993,0.13,187.03,187.0,7.26110216]
[1755731111700,0.13,187.03,187.01,2.77]
[1755731114503,0.03598755,187.04,187.01,2.77]
[1755731114705,0.16598755,187.04,187.01,2.77]
[1755731115398,0.13,187.03,187.0,2.77]
[1755731115703,0.13,187.02,187.0,2.77]
[1755731115898,0.03598755,187.04,187.0,2.77]
[1755731116095,0.13,187.03,187.0,2.77]
[1755731116300,0.03598755,187.04,187.0,2.77]
[1755731116500,0.16598755,187.04,187.01,2.77]
[1755731116705,0.13,187.03,186.99,2.77]
[1755731116905,0.13,187.03,187.0,2.77]
[1755731117501,0.16598755,187.04,187.01,2.77]
[1755731119998,0.03598755,187.04,187.02,2.77]
[1755731121107,0.03598755,187.04,187.03,2.77]
[1755731123608,0.03598755,187.04,187.0,9.83770216]
[1755731123805,0.16598755,187.04,187.01,2.77]
[1755731124001,0.13,187.03,187.01,2.77]
[1755731124402,0.03598755,187.04,187.01,2.77]
[1755731124597,0.03598755,187.04,187.0,2.77]
[1755731124804,0.16598755,187.04,187.01,2.77]
[1755731125002,0.16598755,187.04,187.0,2.77]
[1755731125209,0.03598755,187.04,187.0,2.77]
[1755731125411,0.03598755,187.04,187.0,7.26110216]
[1755731125611,0.03598755,187.04,187.01,8.1164]
[1755731125809,0.03598755,187.04,187.01,5.3464]
[1755731126010,0.03598755,187.04,187.03,2.79]
[1755731126915,0.03598755,187.04,187.03,8.1358]
[1755731127712,0.03598755,187.04,187.03,12.62690216]
[1755731127913,122.39113144,187.1,187.06,2.79]
[1755731127914,120.05482245,187.1,187.06,2.79]
[1755731128211,120.05482245,187.1,187.08,2.79]
[1755731132513,2.33630899,187.14,187.07,0.03594385]
[1755731132716,0.16,187.11,187.07,0.03594385]
[1755731132914,0.16,187.1,187.07,0.03594385]
[1755731133114,2.33630899,187.14,187.07,0.03594385]
[1755731133115,0.16,187.09,187.07,0.03594385]
[1755731135717,0.16,187.08,187.07,0.03594385]
[1755731139819,0.16,187.1,187.07,0.03594385]
[1755731140116,2.33630899,187.11,187.07,0.03594385]
[1755731140322,0.16,187.1,187.07,0.03594385]
[1755731140517,0.16,187.09,187.07,0.03594385]
[1755731140721,2.33630899,187.11,187.07,0.03594385]
[1755731140722,0.16,187.08,187.07,0.03594385]
[1755731144522,2.49630899,187.08,187.07,0.03594385]
[1755731144723,2.49630899,187.08,187.0,4.49721613]
[1755731144724,2.33630899,187.08,187.0,4.49721613]
[1755731144926,0.16,187.04,187.0,2.79]
[1755731145126,0.16,187.03,187.0,2.79]
[1755731146127,0.1962823,187.03,187.0,2.79]
[1755731146628,0.16,187.02,186.99,4.49721613]
[1755731146829,0.16,187.02,186.99,2.79]
[1755731148127,0.16,187.02,187.0,2.79]
[1755731148824,0.1962823,187.03,187.0,2.79]
[1755731149022,0.1962823,187.03,186.97,7.28721613]
[1755731150132,0.1962823,187.03,186.98,2.79]
[1755731150333,0.1962823,187.03,186.99,2.79]
[1755731150533,0.1962823,187.03,187.0,2.79]
[1755731152538,0.16,187.01,186.97,2.79]
[1755731152840,0.16,187.01,186.98,2.79]
[1755731155035,0.16,187.01,186.99,2.79]
[1755731156537,2.49630899,187.01,186.98,2.81]
[1755731157736,0.16,187.0,186.98,2.81]
[1755731159740,0.16,187.0,186.96,2.81]
[1755731159939,0.16,186.99,186.96,2.81]
[1755731160139,0.16,186.99,186.97,2.81]
[1755731160339,2.33630899,187.01,186.94,8.1584]
[1755731160541,2.33630899,187.01,186.95,2.81]
[1755731161436,2.49630899,187.02,186.95,8.1581]
[1755731161733,2.49630899,187.02,186.96,2.81]
[1755731162334,0.03680051,187.01,186.95,5.3481]
[1755731162540,0.03680051,187.01,186.99,2.81]
[1755731162837,0.03680051,187.01,187.0,2.81]
[1755731167041,0.03680051,187.01,186.95,2.81]
[1755731167344,0.15,186.99,186.96,2.81]
[1755731167935,0.15,186.98,186.93,2.81]
[1755731168237,0.15,186.98,186.92,0.93085462]
[1755731168442,0.03680051,187.01,186.94,5.3482]
[1755731168636,2.48630899,187.03,186.95,2.81]
[1755731169141,2.48630899,187.03,186.95,8.1581]
[1755731169345,0.03563471,187.01,186.96,2.81]
[1755731169842,0.03563471,187.01,186.97,2.81]
[1755731170043,0.03563471,187.01,186.98,2.81]
[1755731170243,0.18563471,187.01,186.98,2.81]
[1755731173444,0.15,187.0,186.98,2.81]
[1755731176242,0.03563471,187.01,186.98,2.81]
[1755731177144,0.03563471,187.01,186.99,2.81]
[1755731177348,0.03563471,187.01,187.0,2.81]
[1755731178545,0.03563471,187.01,186.97,2.81]
[1755731178751,0.18563471,187.01,186.98,2.81]
[1755731179947,0.03563471,187.01,186.98,2.81]
[1755731180154,0.15,187.0,186.98,2.81]
[1755731181359,0.03563471,187.01,186.98,2.81]
[1755731181755,0.18563471,187.01,186.98,2.81]
[1755731183567,0.15,187.0,186.98,2.81]
[1755731183864,0.18563471,187.01,186.98,2.81]
[1755731187067,0.03563471,187.01,186.98,2.81]
[1755731187264,0.16,187.0,186.94,9.82864223]
[1755731187465,0.16,187.0,186.97,2.95]
[1755731187860,0.16,187.0,186.94,9.82864223]
[1755731188065,0.16,187.0,186.92,0.93085462]
[1755731188066,2.33630899,187.0,186.95,2.95]
[1755731188261,0.16,186.99,186.96,2.95]
[1755731188665,0.16,186.99,186.92,10.75999685]
[1755731188869,0.16,186.99,186.93,2.95]
[1755731190970,0.16,186.99,186.94,2.95]
[1755731191172,0.16,186.99,186.93,5.3487]
[1755731191375,0.16,186.99,186.97,2.95]
[1755731191674,2.33630899,187.0,186.93,2.95]
[1755731192569,2.33630899,187.0,186.94,2.95]
[1755731196379,1.4956809,186.99,186.94,2.95]
[1755731197770,1.4956809,186.99,186.94,8.2984]
[1755731197973,1.4956809,186.99,186.95,2.95]
[1755731198571,1.4956809,186.99,186.97,2.95]
[1755731198772,1.4956809,186.99,186.98,2.95]
[1755731200370,1.4956809,186.99,186.95,2.95]
[1755731200670,1.4956809,186.99,186.97,2.95]
[1755731201877,1.6556809,186.99,186.94,5.3484]
[1755731202078,1.6556809,186.99,186.96,2.95]
[1755731202876,1.6556809,186.99,186.97,2.95]
[1755731203080,1.6556809,186.99,186.93,7.43034223]
[1755731203274,1.6556809,186.99,186.92,0.93085462]
[1755731203275,1.4956809,186.96,186.94,2.95]
[1755731204375,0.19630155,186.97,186.94,2.95]
[1755731204677,0.19630155,186.97,186.92,0.93085462]